fUSD/lending_fUSD_20240412
["ID","MTS","AMOUNT","RATE_DAILY","PERIOD"]
[322245781,1712911863124,-154.67867002,0.00030247,7]
[322245782,1712911863134,-823.19563084,0.00030264,2]
[322245783,1712911863144,-2000.0,0.000303,2]
[322245784,1712911863154,-200.0,0.000303,2]
[322245785,1712911863164,-155.75305263,0.00030316,7]
[322245786,1712911863174,-554.70551391,0.00030366,2]
[322245787,1712911863183,-763.81,0.0003041,2]
[322245788,1712911863194,-151.0,0.0003041,7]
[322245789,1712911863203,-500.0,0.0003041,2]
[322245790,1712911863212,-500.0,0.0003041,2]
[322245791,1712911863222,-500.0,0.0003041,2]
[322245792,1712911863232,-500.0,0.0003041,2]
[322245793,1712911863244,-500.0,0.0003041,2]
[322245794,1712911863254,-547.42,0.0003041,2]
[322245795,1712911863264,-4621.87,0.0003041,2]
[322245796,1712911863273,-909.99,0.0003041,2]
[322245797,1712911863283,-500.0,0.0003041,2]
[322245798,1712911863295,-500.0,0.0003041,2]
[322245799,1712911863304,-627.77,0.0003041,2]
[322245800,1712911863313,-1382.88,0.0003041,2]
[322245801,1712911863323,-747.47,0.0003041,2]
[322245802,1712911863332,-500.0,0.0003041,2]
[322245803,1712911863342,-729.48,0.0003041,2]
[322245804,1712911863351,-3412.01,0.0003041,2]
[322245805,1712911863361,-583.52,0.0003041,2]
[322245806,1712911863370,-500.0,0.0003041,2]
[322245807,1712911863380,-1629.1,0.0003041,2]
[322245808,1712911863389,-1070.23,0.0003041,2]
[322245809,1712911863398,-500.0,0.0003041,2]
[322245810,1712911863409,-500.0,0.0003041,2]
[322245811,1712911863426,-500.0,0.0003041,2]
[322245812,1712911863441,-500.0,0.0003041,2]
[322245813,1712911863456,-500.0,0.0003041,2]
[322245814,1712911863468,-500.0,0.0003041,2]
[322245815,1712911863483,-531.51,0.0003041,2]
[322245816,1712911863498,-1017.14,0.0003041,2]
[322245817,1712911863511,-4209.01,0.0003041,2]
[322245818,1712911863526,-565.53,0.0003041,2]
[322245819,1712911863541,-707.08,0.0003041,2]
[322245820,1712911863554,-518.15,0.0003041,2]
[322245821,1712911863565,-1204.45,0.0003041,2]
[322245822,1712911863577,-348.79159853,0.0003041,2]
[322245823,1712911863590,-500.0,0.0003041,2]
[322245824,1712911863603,-500.0,0.0003041,2]
[322245825,1712911863616,-1183.44,0.0003041,2]
[322245826,1712911863632,-630.64,0.0003041,2]
[322245827,1712911863646,-553.08,0.0003041,2]
[322245828,1712911863659,-635.27,0.0003041,2]
[322245829,1712911863670,-792.96,0.0003041,2]
[322245830,1712911863686,-500.0,0.0003041,2]
[322245831,1712911863698,-1195.02,0.0003041,2]
[322245832,1712911863712,-1026.49,0.0003041,2]
[322245833,1712911863727,-1086.25,0.0003041,2]
[322245834,1712911863740,-710.1,0.0003041,2]
[322245835,1712911863753,-1367.38,0.0003041,2]
[322245836,1712911863766,-500.0,0.0003041,2]
[322245837,1712911863779,-3603.43,0.0003041,2]
[322245838,1712911863792,-500.0,0.0003041,2]
[322245839,1712911863805,-500.0,0.0003041,2]
[322245840,1712911863819,-500.0,0.0003041,2]
[322245841,1712911863833,-500.0,0.0003041,2]
[322245842,1712911863846,-603.21,0.0003041,2]
[322245843,1712911863856,-1224.81,0.0003041,2]
[322245844,1712911863866,-3560.77,0.0003041,2]
[322245845,1712911863878,-606.15,0.0003041,2]
[322245846,1712911863890,-500.0,0.0003041,2]
[322245847,1712911863902,-533.6,0.0003041,2]
[322245848,1712911863914,-1871.85,0.0003041,2]
[322245849,1712911863926,-500.0,0.0003041,2]
[322245850,1712911863937,-1490.24,0.0003041,2]
[322245851,1712911863948,-1706.07,0.0003041,2]
[322245852,1712911863959,-612.32,0.0003041,2]
[322245853,1712911863970,-539.83,0.0003041,2]
[322245854,1712911863982,-1125.99,0.0003041,2]
[322245855,1712911863993,-500.0,0.0003041,2]
[322245856,1712911864004,-1105.98,0.0003041,2]
[322245857,1712911864016,-1184.14,0.0003041,2]
[322245858,1712911864027,-372.49380996,0.0003041,2]
[322245859,1712911864039,-9956.47,0.0003041,2]
[322245860,1712911864051,-552.01,0.0003041,2]
[322245861,1712911864062,-1077.93,0.0003041,2]
[322245862,1712911864073,-500.0,0.0003041,2]
[322245863,1712911864084,-380.71207629,0.0003041,2]
[322245864,1712911864094,-1556.23,0.0003041,2]
[322245865,1712911864107,-1031.63,0.0003041,2]
[322245866,1712911864118,-500.0,0.0003041,2]
[322245867,1712911864129,-500.0,0.0003041,2]
[322245868,1712911864140,-500.0,0.0003041,2]
[322245869,1712911864152,-500.0,0.0003041,2]
[322245870,1712911864164,-884.93,0.0003041,2]
[322245871,1712911864175,-659.52,0.0003041,2]
[322245872,1712911864187,-1609.99,0.0003041,2]
[322245873,1712911864198,-699.78,0.0003041,2]
[322245874,1712911864210,-1017.96,0.0003041,2]
[322245875,1712911864222,-500.0,0.0003041,2]
[322245876,1712911864233,-160010.0,0.00030411,4]
[322245877,1712911864245,-22102.0,0.00030411,4]
[322245878,1712911864257,-2555.0,0.00030411,4]
[322245879,1712911864268,-823.19563084,0.00030445,2]
[322245880,1712911864280,-155.6033092,0.00030557,2]
[322245881,1712911864292,-367.60439193,0.00030585,5]
[322245882,1712911864303,-823.19563084,0.00030627,2]
[322245883,1712911864314,-312.830936,0.00030684,7]
[322245884,1712911864326,-312.830936,0.00030684,7]
[322245885,1712911864338,-763.81,0.00030684,2]
[322245886,1712911864349,-151.0,0.00030684,7]
[322245887,1712911864360,-500.0,0.00030684,2]
[322245888,1712911864371,-500.0,0.00030684,2]
[322245889,1712911864383,-500.0,0.00030684,2]
[322245890,1712911864395,-500.0,0.00030684,2]
[322245891,1712911864406,-500.0,0.00030684,2]
[322245892,1712911864418,-547.42,0.00030684,2]
[322245893,1712911864429,-4621.87,0.00030684,2]
[322245894,1712911864441,-909.99,0.00030684,2]
[322245895,1712911864452,-471.28505785,0.00030684,2]
[322245896,1712911864463,-500.0,0.00030684,2]
[322245897,1712911864474,-627.77,0.00030684,2]
[322245898,1712911864486,-1382.88,0.00030684,2]
[322245899,1712911864498,-747.47,0.00030684,2]
[322245900,1712911864509,-500.0,0.00030684,2]
[322245901,1712911864518,-729.48,0.00030684,2]
[322245902,1712911864527,-3412.01,0.00030684,2]
[322245903,1712911864537,-583.52,0.00030684,2]
[322245904,1712911864550,-500.0,0.00030684,2]
[322245905,1712911864559,-1629.1,0.00030684,2]
[322245906,1712911864568,-1070.23,0.00030684,2]
[322245907,1712911864578,-500.0,0.00030684,2]
[322245908,1712911864587,-500.0,0.00030684,2]
[322245909,1712911864597,-500.0,0.00030684,2]
[322245910,1712911864607,-500.0,0.00030684,2]
[322245911,1712911864616,-500.0,0.00030684,2]
[322245912,1712911864625,-500.0,0.00030684,2]
[322245913,1712911864634,-531.51,0.00030684,2]
[322245914,1712911864644,-1017.14,0.00030684,2]
[322245915,1712911864653,-4209.01,0.00030684,2]
[322245916,1712911864663,-565.53,0.00030684,2]
[322245917,1712911864672,-707.08,0.00030684,2]
[322245918,1712911864682,-518.15,0.00030684,2]
[322245919,1712911864691,-1204.45,0.00030684,2]
[322245920,1712911864700,-500.0,0.00030684,2]
[322245921,1712911864710,-500.0,0.00030684,2]
[322245922,1712911864719,-1183.44,0.00030684,2]
[322245923,1712911864729,-630.64,0.00030684,2]
[322245924,1712911864738,-553.08,0.00030684,2]
[322245925,1712911864748,-635.27,0.00030684,2]
[322245926,1712911864757,-792.96,0.00030684,2]
[322245927,1712911864766,-500.0,0.00030684,2]
[322245928,1712911864776,-1195.02,0.00030684,2]
[322245929,1712911864785,-1026.49,0.00030684,2]
[322245930,1712911864796,-1086.25,0.00030684,2]
[322245931,1712911864806,-710.1,0.00030684,2]
[322245932,1712911864815,-1367.38,0.00030684,2]
[322245933,1712911864824,-500.0,0.00030684,2]
[322245934,1712911864833,-3603.43,0.00030684,2]
[322245935,1712911864843,-500.0,0.00030684,2]
[322245936,1712911864852,-500.0,0.00030684,2]
[322245937,1712911864862,-500.0,0.00030684,2]
[322245938,1712911864872,-500.0,0.00030684,2]
[322245939,1712911864883,-603.21,0.00030684,2]
[322245940,1712911864893,-1224.81,0.00030684,2]
[322245941,1712911864903,-3560.77,0.00030684,2]
[322245942,1712911864912,-606.15,0.00030684,2]
[322245943,1712911864922,-500.0,0.00030684,2]
[322245944,1712911864932,-533.6,0.00030684,2]
[322245945,1712911864943,-1871.85,0.00030684,2]
[322245946,1712911864953,-500.0,0.00030684,2]
[322245947,1712911864963,-1490.24,0.00030684,2]
[322245948,1712911864974,-1706.07,0.00030684,2]
[322245949,1712911864985,-612.32,0.00030684,2]
[322245950,1712911864994,-539.83,0.00030684,2]
[322245951,1712911865003,-1125.99,0.00030684,2]
[322245952,1712911865013,-500.0,0.00030684,2]
[322245953,1712911865022,-1105.98,0.00030684,2]
[322245954,1712911865032,-1184.14,0.00030684,2]
[322245955,1712911865042,-9956.47,0.00030684,2]
[322245956,1712911865051,-552.01,0.00030684,2]
[322245957,1712911865061,-1077.93,0.00030684,2]
[322245958,1712911865071,-500.0,0.00030684,2]
[322245959,1712911865081,-1556.23,0.00030684,2]
[322245960,1712911865090,-1031.63,0.00030684,2]
[322245961,1712911865100,-500.0,0.00030684,2]
[322245962,1712911865109,-260.96268973,0.00030684,2]
[322245963,1712911865118,-500.0,0.00030684,2]
[322245964,1712911865128,-500.0,0.00030684,2]
[322245965,1712911865138,-884.93,0.00030684,2]
[322245966,1712911865147,-659.52,0.00030684,2]
[322245967,1712911865156,-1609.99,0.00030684,2]
[322245968,1712911865167,-699.78,0.00030684,2]
[322245969,1712911865534,-1017.96,0.00030684,2]
[322245970,1712911865546,-571.61706993,0.00030684,2]
[322245971,1712911865556,-153.82382248,0.00030751,7]
[322245972,1712911865565,-158.27358246,0.00030756,7]
[322245973,1712911865574,-150.73908605,0.00030789,7]
[322245974,1712911865584,-823.19563084,0.00030809,2]
[322245975,1712911865593,-154.09758038,0.00030846,7]
[322245976,1712911865603,-191.73114788,0.00030858,2]
[322245977,1712911865613,-686.0,0.00030877,2]
[322245978,1712911865622,-554.70551391,0.00030877,2]
[322245979,1712911865632,-28719.68879487,0.0003088,2]
[322245980,1712911865641,-535.0,0.00030905,2]
[322245981,1712911865650,-153.32512064,0.00030918,7]
[322245982,1712911865660,-246.3,0.0003095,15]
[322245983,1712911865669,-312.830936,0.00030958,7]
[322245984,1712911865679,-312.830936,0.00030958,7]
[322245985,1712911865688,-763.81,0.00030958,2]
[322245986,1712911865698,-500.0,0.00030958,2]
[322245987,1712911865708,-500.0,0.00030958,2]
[322245988,1712911865718,-500.0,0.00030958,2]
[322245989,1712911865727,-500.0,0.00030958,2]
[322245990,1712911865736,-500.0,0.00030958,2]
[322245991,1712911865746,-547.42,0.00030958,2]
[322245992,1712911865756,-4621.87,0.00030958,2]
[322245993,1712911865766,-909.99,0.00030958,2]
[322245994,1712911865775,-500.0,0.00030958,2]
[322245995,1712911865784,-627.77,0.00030958,2]
[322245996,1712911865794,-1382.88,0.00030958,2]
[322245997,1712911865804,-747.47,0.00030958,2]
[322245998,1712911865815,-500.0,0.00030958,2]
[322245999,1712911865824,-729.48,0.00030958,2]
[322246000,1712911865834,-3412.01,0.00030958,2]
[322246001,1712911865844,-583.52,0.00030958,2]
[322246002,1712911865855,-500.0,0.00030958,2]
[322246003,1712911865865,-1629.1,0.00030958,2]
[322246004,1712911865874,-1070.23,0.00030958,2]
[322246005,1712911865884,-500.0,0.00030958,2]
[322246006,1712911865893,-500.0,0.00030958,2]
[322246007,1712911865903,-500.0,0.00030958,2]
[322246008,1712911865912,-500.0,0.00030958,2]
[322246009,1712911865923,-500.0,0.00030958,2]
[322246010,1712911865933,-500.0,0.00030958,2]
[322246011,1712911865942,-531.51,0.00030958,2]
[322246012,1712911865952,-1017.14,0.00030958,2]
[322246013,1712911865962,-4209.01,0.00030958,2]
[322246014,1712911865972,-565.53,0.00030958,2]
[322246015,1712911865982,-707.08,0.00030958,2]
[322246016,1712911865992,-518.15,0.00030958,2]
[322246017,1712911866001,-1204.45,0.00030958,2]
[322246018,1712911866010,-500.0,0.00030958,2]
[322246019,1712911866020,-500.0,0.00030958,2]
[322246020,1712911866030,-1183.44,0.00030958,2]
[322246021,1712911866041,-630.64,0.00030958,2]
[322246022,1712911866051,-553.08,0.00030958,2]
[322246023,1712911866062,-635.27,0.00030958,2]
[322246024,1712911866071,-792.96,0.00030958,2]
[322246025,1712911866081,-500.0,0.00030958,2]
[322246026,1712911866091,-1195.02,0.00030958,2]
[322246027,1712911866101,-1026.49,0.00030958,2]
[322246028,1712911866111,-1086.25,0.00030958,2]
[322246029,1712911866121,-710.1,0.00030958,2]
[322246030,1712911866131,-1367.38,0.00030958,2]
[322246031,1712911866142,-500.0,0.00030958,2]
[322246032,1712911866152,-3603.43,0.00030958,2]
[322246033,1712911866162,-500.0,0.00030958,2]
[322246034,1712911866172,-500.0,0.00030958,2]
[322246035,1712911866182,-500.0,0.00030958,2]
[322246036,1712911866191,-500.0,0.00030958,2]
[322246037,1712911866201,-603.21,0.00030958,2]
[322246038,1712911866211,-1224.81,0.00030958,2]
[322246039,1712911866221,-3560.77,0.00030958,2]
[322246040,1712911866231,-606.15,0.00030958,2]
[322246041,1712911866242,-500.0,0.00030958,2]
[322246042,1712911866254,-533.6,0.00030958,2]
[322246043,1712911866264,-1871.85,0.00030958,2]
[322246044,1712911866274,-234.00509274,0.00030958,2]
[322246045,1712911866285,-1490.24,0.00030958,2]
[322246046,1712911866295,-1706.07,0.00030958,2]
[322246047,1712911866304,-612.32,0.00030958,2]
[322246048,1712911866315,-539.83,0.00030958,2]
[322246049,1712911866326,-1125.99,0.00030958,2]
[322246050,1712911866336,-263.34373529,0.00030958,2]
[322246051,1712911866346,-1105.98,0.00030958,2]
[322246052,1712911866355,-1184.14,0.00030958,2]
[322246053,1712911866365,-9956.47,0.00030958,2]
[322246054,1712911866375,-552.01,0.00030958,2]
[322246055,1712911866384,-1077.93,0.00030958,2]
[322246056,1712911866393,-500.0,0.00030958,2]
[322246057,1712911866403,-1556.23,0.00030958,2]
[322246058,1712911866413,-1031.63,0.00030958,2]
[322246059,1712911866423,-572.65,0.00030958,2]
[322246060,1712911866432,-500.0,0.00030958,2]
[322246061,1712911866441,-500.0,0.00030958,2]
[322246062,1712911866450,-884.93,0.00030958,2]
[322246063,1712911866460,-659.52,0.00030958,2]
[322246064,1712911866469,-1609.99,0.00030958,2]
[322246065,1712911866479,-699.78,0.00030958,2]
[322246066,1712911866489,-1017.96,0.00030958,2]
[322246067,1712911866498,-823.19563084,0.00030991,2]
[322246068,1712911866508,-150.0,0.00030999,2]
[322246069,1712911866518,-100000.0,0.00031,21]
[322246070,1712911866527,-491.92815397,0.00031,4]
[322246071,1712911866537,-770.16083433,0.00031,3]
[322246072,1712911866548,-20000.0,0.00031,3]
[322246073,1712911866558,-253431.64892571,0.00031,2]
[322246074,1712911866568,-10976.06138098,0.00031,21]
[322246075,1712911866578,-10926.0,0.00031,2]
[322246076,1712911866587,-153.82382248,0.00031012,7]
[322246077,1712911866597,-159.45639322,0.0003109,7]
[322246078,1712911866606,-363.84155364,0.00031132,18]
[322246079,1712911866615,-153.82382248,0.00031135,7]
[322246080,1712911866625,-823.19563084,0.00031173,2]
[322246081,1712911866634,-153.82382248,0.00031176,7]
[322246082,1712911866644,-763.81,0.00031232,2]
[322246083,1712911866653,-243.366828,0.00031232,7]
[322246084,1712911866662,-325.31390722,0.00031232,2]
[322246085,1712911866672,-500.0,0.00031232,2]
[322246086,1712911866681,-500.0,0.00031232,2]
[322246087,1712911866692,-500.0,0.00031232,2]
[322246088,1712911866703,-500.0,0.00031232,2]
[322246089,1712911866714,-547.42,0.00031232,2]
[322246090,1712911866724,-4621.87,0.00031232,2]
[322246091,1712911866734,-909.99,0.00031232,2]
[322246092,1712911866745,-500.0,0.00031232,2]
[322246093,1712911866755,-627.77,0.00031232,2]
[322246094,1712911866766,-1382.88,0.00031232,2]
[322246095,1712911866777,-747.47,0.00031232,2]
[322246096,1712911866788,-500.0,0.00031232,2]
[322246097,1712911866800,-729.48,0.00031232,2]
[322246098,1712911866816,-3412.01,0.00031232,2]
[322246099,1712911866826,-583.52,0.00031232,2]
[322246100,1712911866844,-500.0,0.00031232,2]
[322246101,1712911866855,-1629.1,0.00031232,2]
[322246102,1712911866888,-1070.23,0.00031232,2]
[322246103,1712911866916,-500.0,0.00031232,2]
[322246104,1712911866929,-500.0,0.00031232,2]
[322246105,1712911866940,-500.0,0.00031232,2]
[322246106,1712911866952,-500.0,0.00031232,2]
[322246107,1712911866963,-500.0,0.00031232,2]
[322246108,1712911866987,-500.0,0.00031232,2]
[322246109,1712911866998,-531.51,0.00031232,2]
[322246110,1712911867022,-1017.14,0.00031232,2]
[322246111,1712911867049,-4209.01,0.00031232,2]
[322246112,1712911867076,-565.53,0.00031232,2]
[322246113,1712911867099,-707.08,0.00031232,2]
[322246114,1712911867110,-518.15,0.00031232,2]
[322246115,1712911867128,-1204.45,0.00031232,2]
[322246116,1712911867139,-500.0,0.00031232,2]
[322246117,1712911867151,-500.0,0.00031232,2]
[322246118,1712911867184,-1183.44,0.00031232,2]
[322246119,1712911867216,-630.64,0.00031232,2]
[322246120,1712911867238,-553.08,0.00031232,2]
[322246121,1712911867250,-635.27,0.00031232,2]
[322246122,1712911867271,-792.96,0.00031232,2]
[322246123,1712911867298,-500.0,0.00031232,2]
[322246124,1712911867340,-1195.02,0.00031232,2]
[322246125,1712911867351,-1026.49,0.00031232,2]
[322246126,1712911867362,-1086.25,0.00031232,2]
[322246127,1712911867372,-710.1,0.00031232,2]
[322246128,1712911867383,-1367.38,0.00031232,2]
[322246129,1712911867393,-500.0,0.00031232,2]
[322246130,1712911867404,-3603.43,0.00031232,2]
[322246131,1712911867414,-500.0,0.00031232,2]
[322246132,1712911867425,-500.0,0.00031232,2]
[322246133,1712911867436,-500.0,0.00031232,2]
[322246134,1712911867446,-219.18735861,0.00031232,2]
[322246135,1712911867457,-603.21,0.00031232,2]
[322246136,1712911867467,-1224.81,0.00031232,2]
[322246137,1712911867477,-3560.77,0.00031232,2]
[322246138,1712911867487,-606.15,0.00031232,2]
[322246139,1712911867497,-500.0,0.00031232,2]
[322246140,1712911867507,-533.6,0.00031232,2]
[322246141,1712911867517,-1871.85,0.00031232,2]
[322246142,1712911867526,-1490.24,0.00031232,2]
[322246143,1712911867536,-1706.07,0.00031232,2]
[322246144,1712911867547,-612.32,0.00031232,2]
[322246145,1712911867557,-539.83,0.00031232,2]
[322246146,1712911867567,-1125.99,0.00031232,2]
[322246147,1712911867576,-1105.98,0.00031232,2]
[322246148,1712911867586,-1184.14,0.00031232,2]
[322246149,1712911867595,-9956.47,0.00031232,2]
[322246150,1712911867605,-552.01,0.00031232,2]
[322246151,1712911867615,-1077.93,0.00031232,2]
[322246152,1712911867625,-500.0,0.00031232,2]
[322246153,1712911867635,-1556.23,0.00031232,2]
[322246154,1712911867644,-1031.63,0.00031232,2]
[322246155,1712911867654,-500.0,0.00031232,2]
[322246156,1712911867664,-500.0,0.00031232,2]
[322246157,1712911867673,-884.93,0.00031232,2]
[322246158,1712911867682,-659.52,0.00031232,2]
[322246159,1712911867691,-1609.99,0.00031232,2]
[322246160,1712911867701,-699.78,0.00031232,2]
[322246161,1712911867711,-1017.96,0.00031232,2]
[322246162,1712911867720,-367.60439193,0.00031242,5]
[322246163,1712911867731,-363.84155362,0.00031324,19]
[322246164,1712911867740,-823.19563084,0.00031355,2]
[322246165,1712911867750,-191.73114786,0.00031379,2]
[322246166,1712911867760,-554.70551391,0.00031389,2]
[322246167,1712911867769,-713.26,0.00031416,2]
[322246168,1712911867778,-312.830936,0.00031506,7]
[322246169,1712911867788,-312.830936,0.00031506,7]
[322246170,1712911867798,-763.81,0.00031506,2]
[322246171,1712911867807,-500.0,0.00031506,2]
[322246172,1712911867818,-500.0,0.00031506,2]
[322246173,1712911867827,-500.0,0.00031506,2]
[322246174,1712911867837,-500.0,0.00031506,2]
[322246175,1712911867846,-547.42,0.00031506,2]
[322246176,1712911867856,-4621.87,0.00031506,2]
[322246177,1712911867866,-909.99,0.00031506,2]
[322246178,1712911867875,-500.0,0.00031506,2]
[322246179,1712911867885,-627.77,0.00031506,2]
[322246180,1712911867894,-1382.88,0.00031506,2]
[322246181,1712911867904,-747.47,0.00031506,2]
[322246182,1712911867913,-500.0,0.00031506,2]
[322246183,1712911867923,-729.48,0.00031506,2]
[322246184,1712911867932,-3412.01,0.00031506,2]
[322246185,1712911867942,-583.52,0.00031506,2]
[322246186,1712911867951,-500.0,0.00031506,2]
[322246187,1712911867961,-1629.1,0.00031506,2]
[322246188,1712911867971,-1070.23,0.00031506,2]
[322246189,1712911867981,-500.0,0.00031506,2]
[322246190,1712911867990,-500.0,0.00031506,2]
[322246191,1712911868000,-500.0,0.00031506,2]
[322246192,1712911868009,-500.0,0.00031506,2]
[322246193,1712911868018,-635.7991641,0.00031506,2]
[322246194,1712911868028,-500.0,0.00031506,2]
[322246195,1712911868037,-531.51,0.00031506,2]
[322246196,1712911868048,-1017.14,0.00031506,2]
[322246197,1712911868057,-4209.01,0.00031506,2]
[322246198,1712911868066,-565.53,0.00031506,2]
[322246199,1712911868075,-707.08,0.00031506,2]
[322246200,1712911868084,-518.15,0.00031506,2]
[322246201,1712911868093,-1204.45,0.00031506,2]
[322246202,1712911868102,-593.5445947,0.00031506,2]
[322246203,1712911868112,-500.0,0.00031506,2]
[322246204,1712911868121,-1183.44,0.00031506,2]
[322246205,1712911868131,-630.64,0.00031506,2]
[322246206,1712911868141,-553.08,0.00031506,2]
[322246207,1712911868150,-635.27,0.00031506,2]
[322246208,1712911868160,-792.96,0.00031506,2]
[322246209,1712911868169,-300.49044251,0.00031506,2]
[322246210,1712911868178,-1195.02,0.00031506,2]
[322246211,1712911868188,-1026.49,0.00031506,2]
[322246212,1712911868197,-1086.25,0.00031506,2]
[322246213,1712911868206,-710.1,0.00031506,2]
[322246214,1712911868216,-1367.38,0.00031506,2]
[322246215,1712911868226,-500.0,0.00031506,2]
[322246216,1712911868236,-3603.43,0.00031506,2]
[322246217,1712911868246,-500.0,0.00031506,2]
[322246218,1712911868256,-500.0,0.00031506,2]
[322246219,1712911868267,-500.0,0.00031506,2]
[322246220,1712911868276,-603.21,0.00031506,2]
[322246221,1712911868286,-1224.81,0.00031506,2]
[322246222,1712911868297,-3560.77,0.00031506,2]
[322246223,1712911868307,-606.15,0.00031506,2]
[322246224,1712911868316,-500.0,0.00031506,2]
[322246225,1712911868326,-533.6,0.00031506,2]
[322246226,1712911868335,-1871.85,0.00031506,2]
[322246227,1712911868345,-1490.24,0.00031506,2]
[322246228,1712911868355,-1706.07,0.00031506,2]
[322246229,1712911868365,-612.32,0.00031506,2]
[322246230,1712911868374,-539.83,0.00031506,2]
[322246231,1712911868383,-1125.99,0.00031506,2]
[322246232,1712911868393,-1105.98,0.00031506,2]
[322246233,1712911868403,-1184.14,0.00031506,2]
[322246234,1712911868413,-9956.47,0.00031506,2]
[322246235,1712911868423,-552.01,0.00031506,2]
[322246236,1712911868433,-1077.93,0.00031506,2]
[322246237,1712911868442,-461.38645075,0.00031506,2]
[322246238,1712911868452,-1556.23,0.00031506,2]
[322246239,1712911868462,-1031.63,0.00031506,2]
[322246240,1712911868472,-425.72417224,0.00031506,2]
[322246241,1712911868481,-307.5266643,0.00031506,2]
[322246242,1712911868491,-884.93,0.00031506,2]
[322246243,1712911868500,-659.52,0.00031506,2]
[322246244,1712911868509,-1609.99,0.00031506,2]
[322246245,1712911868519,-699.78,0.00031506,2]
[322246246,1712911868528,-1017.96,0.00031506,2]
[322246247,1712911868537,-363.84155362,0.00031516,19]
[322246248,1712911868547,-152.88928602,0.00031529,7]
[322246249,1712911868556,-158.38413686,0.00031534,7]
[322246250,1712911868566,-823.19563084,0.00031536,3]
[322246251,1712911868577,-152.06887318,0.00031574,7]
[322246252,1712911868586,-152.4030616,0.00031618,7]
[322246253,1712911868596,-363.84155362,0.00031708,19]
[322246254,1712911868605,-823.19563084,0.00031718,3]
[322246255,1712911868614,-154.09758038,0.00031728,7]
[322246256,1712911868624,-763.81,0.0003178,2]
[322246257,1712911868634,-500.0,0.0003178,2]
[322246258,1712911868644,-500.0,0.0003178,2]
[322246259,1712911868653,-470.9647858,0.0003178,2]
[322246260,1712911868662,-243.37526676,0.0003178,2]
[322246261,1712911868671,-547.42,0.0003178,2]
[322246262,1712911868680,-4621.87,0.0003178,2]
[322246263,1712911868689,-909.99,0.0003178,2]
[322246264,1712911868699,-500.0,0.0003178,2]
[322246265,1712911868708,-627.77,0.0003178,2]
[322246266,1712911868718,-1382.88,0.0003178,2]
[322246267,1712911868727,-747.47,0.0003178,2]
[322246268,1712911868736,-500.0,0.0003178,2]
[322246269,1712911868746,-729.48,0.0003178,2]
[322246270,1712911868756,-3412.01,0.0003178,2]
[322246271,1712911868766,-583.52,0.0003178,2]
[322246272,1712911868775,-500.0,0.0003178,2]
[322246273,1712911868785,-1629.1,0.0003178,2]
[322246274,1712911868794,-1070.23,0.0003178,2]
[322246275,1712911868804,-578.8392455,0.0003178,2]
[322246276,1712911868814,-500.0,0.0003178,2]
[322246277,1712911868823,-236.15269461,0.0003178,2]
[322246278,1712911868832,-500.0,0.0003178,2]
[322246279,1712911868841,-500.0,0.0003178,2]
[322246280,1712911868851,-531.51,0.0003178,2]